fUSD/lending_fUSD_20250606
["ID","MTS","AMOUNT","RATE_DAILY","PERIOD"]
[364804180,1749246647792,-500.0,0.00027399,2]
[364804182,1749246647801,-500.0,0.00027399,2]
[364804184,1749246647810,-500.0,0.00027399,2]
[364804186,1749246647820,-500.0,0.00027399,2]
[364804188,1749246647829,-500.0,0.00027399,2]
[364804190,1749246647838,-500.0,0.00027399,2]
[364804192,1749246647847,-500.0,0.00027399,2]
[364804194,1749246647856,-500.0,0.00027399,2]
[364804196,1749246647866,-500.0,0.00027399,2]
[364804198,1749246647875,-500.0,0.00027399,2]
[364804200,1749246647884,-500.0,0.00027399,2]
[364804202,1749246647893,-500.0,0.00027399,2]
[364804204,1749246647902,-500.0,0.00027399,2]
[364804206,1749246647911,-500.0,0.00027399,2]
[364804207,1749246647921,-500.0,0.00027399,2]
[364804209,1749246647930,-500.0,0.00027399,2]
[364804211,1749246647939,-252.20007499,0.00027399,2]
[364804213,1749246647948,-500.0,0.00027399,2]
[364804215,1749246647957,-500.0,0.00027399,2]
[364804217,1749246647966,-500.0,0.00027399,2]
[364804219,1749246647975,-500.0,0.00027399,2]
[364804221,1749246647984,-500.0,0.00027399,2]
[364804223,1749246647993,-500.0,0.00027399,2]
[364804225,1749246648003,-500.0,0.00027399,2]
[364804227,1749246648012,-500.0,0.00027399,2]
[364804229,1749246648021,-500.0,0.00027399,2]
[364804231,1749246648031,-500.0,0.00027399,2]
[364804234,1749246648040,-500.0,0.00027399,2]
[364804236,1749246648050,-500.0,0.00027399,2]
[364804238,1749246648059,-500.0,0.00027399,2]
[364804239,1749246648069,-500.0,0.00027399,2]
[364804242,1749246648079,-500.0,0.00027399,2]
[364804244,1749246648088,-500.0,0.00027399,2]
[364804246,1749246648099,-500.0,0.00027399,2]
[364804248,1749246648109,-500.0,0.00027399,2]
[364804250,1749246648119,-500.0,0.00027399,2]
[364804252,1749246648130,-500.0,0.00027399,2]
[364804254,1749246648139,-500.0,0.00027399,2]
[364804256,1749246648149,-500.0,0.00027399,2]
[364804258,1749246648159,-500.0,0.00027399,2]
[364804260,1749246648169,-500.0,0.00027399,2]
[364804262,1749246648179,-500.0,0.00027399,2]
[364804264,1749246648188,-500.0,0.00027399,2]
[364804266,1749246648198,-500.0,0.00027399,2]
[364804268,1749246648208,-500.0,0.00027399,2]
[364804270,1749246648218,-150.0,0.00027441,2]
[364804272,1749246648228,-150.0,0.00027443,2]
[364804274,1749246648238,-9405.7727893,0.00027453,2]
[364804276,1749246648248,-221.34148268,0.00027458,2]
[364804278,1749246648261,-9584.69991423,0.00027548,2]
[364804280,1749246648271,-500.0,0.00027549,2]
[364804282,1749246648280,-500.0,0.0002756,2]
[364804284,1749246648289,-514.89713408,0.0002756,2]
[364804286,1749246648298,-1302.85,0.0002756,5]
[364804288,1749246648307,-1394.62,0.0002756,5]
[364804290,1749246648317,-1628.97,0.0002756,5]
[364804292,1749246648326,-150.0,0.0002756,2]
[364804294,1749246648336,-198.50993725,0.0002756,2]
[364804296,1749246648346,-162.41710518,0.00027561,5]
[364804298,1749246648355,-480.0,0.00027561,5]
[364804300,1749246648365,-480.0,0.00027561,5]
[364804302,1749246648375,-480.0,0.00027561,5]
[364804304,1749246648384,-480.0,0.00027561,5]
[364804306,1749246648394,-480.0,0.00027561,5]
[364804308,1749246648403,-480.0,0.00027561,5]
[364804310,1749246648413,-480.0,0.00027561,5]
[364804312,1749246648423,-480.0,0.00027561,5]
[364804314,1749246648432,-480.0,0.00027561,5]
[364804316,1749246648442,-624.93756288,0.00027561,5]
[364804318,1749246648451,-480.0,0.00027561,5]
[364804320,1749246648460,-480.0,0.00027561,5]
[364804321,1749246648470,-480.0,0.00027561,5]
[364804323,1749246648479,-480.0,0.00027561,5]
[364804325,1749246648488,-480.0,0.00027561,5]
[364804327,1749246648498,-480.0,0.00027561,5]
[364804329,1749246648508,-586.20700295,0.00027561,5]
[364804331,1749246648518,-480.0,0.00027561,5]
[364804333,1749246648528,-480.0,0.00027561,5]
[364804335,1749246648538,-600.0,0.00027561,30]
[364804337,1749246648548,-885.44,0.00027561,5]
[364804339,1749246648557,-518.59879986,0.00027561,5]
[364804341,1749246648568,-480.0,0.00027561,5]
[364804343,1749246648583,-480.0,0.00027561,5]
[364804345,1749246648593,-480.0,0.00027561,5]
[364804347,1749246648602,-480.0,0.00027561,5]
[364804349,1749246648611,-480.0,0.00027561,5]
[364804351,1749246648621,-480.0,0.00027561,5]
[364804353,1749246648630,-480.0,0.00027561,5]
[364804355,1749246648640,-480.0,0.00027561,5]
[364804357,1749246648650,-480.0,0.00027561,5]
[364804359,1749246648660,-480.0,0.00027561,5]
[364804370,1749246648754,-480.0,0.00027561,5]
[364804372,1749246648766,-621.89,0.00027561,5]
[364804374,1749246648775,-480.0,0.00027561,5]
[364804376,1749246648784,-480.0,0.00027561,5]
[364804378,1749246648794,-480.0,0.00027561,5]
[364804380,1749246648803,-480.0,0.00027561,5]
[364804382,1749246648813,-493.2,0.00027561,5]
[364804384,1749246648822,-480.0,0.00027561,5]
[364804386,1749246648831,-480.0,0.00027561,5]
[364804388,1749246648840,-480.0,0.00027561,5]
[364804390,1749246648849,-480.0,0.00027561,5]
[364804392,1749246648859,-480.0,0.00027561,5]
[364804394,1749246648868,-480.0,0.00027561,5]
[364804396,1749246648878,-480.0,0.00027561,5]
[364804398,1749246648887,-480.0,0.00027561,5]
[364804400,1749246648896,-480.0,0.00027561,5]
[364804402,1749246648905,-480.0,0.00027561,5]
[364804404,1749246648914,-480.0,0.00027561,5]
[364804406,1749246648923,-480.0,0.00027561,5]
[364804408,1749246648932,-480.0,0.00027561,5]
[364804410,1749246648941,-480.0,0.00027561,5]
[364804412,1749246648950,-480.0,0.00027561,5]
[364804414,1749246648959,-480.0,0.00027561,5]
[364804415,1749246648968,-480.0,0.00027561,5]
[364804418,1749246648978,-480.0,0.00027561,5]
[364804419,1749246648987,-480.0,0.00027561,5]
[364804421,1749246648997,-480.0,0.00027561,5]
[364804423,1749246649006,-480.0,0.00027561,5]
[364804425,1749246649015,-480.0,0.00027561,5]
[364804427,1749246649025,-480.0,0.00027561,5]
[364804429,1749246649034,-480.0,0.00027561,5]
[364804431,1749246649044,-549.3699348,0.00027561,5]
[364804433,1749246649053,-480.0,0.00027561,5]
[364804435,1749246649062,-480.0,0.00027561,5]
[364804437,1749246649071,-480.0,0.00027561,5]
[364804439,1749246649081,-480.0,0.00027561,5]
[364804441,1749246649090,-1372.88,0.00027561,5]
[364804443,1749246649099,-964.82,0.00027561,5]
[364804445,1749246649109,-480.0,0.00027561,5]
[364804447,1749246649118,-480.0,0.00027561,5]
[364804449,1749246649128,-748.95,0.00027561,5]
[364804451,1749246649137,-591.25431971,0.00027561,5]
[364804453,1749246649146,-480.0,0.00027561,5]
[364804455,1749246649155,-588.17258899,0.00027561,5]
[364804457,1749246649165,-480.0,0.00027561,5]
[364804459,1749246649174,-480.0,0.00027561,5]
[364804461,1749246649184,-480.0,0.00027561,5]
[364804463,1749246649193,-480.0,0.00027561,5]
[364804465,1749246649203,-498.72,0.00027561,5]
[364804467,1749246649212,-480.0,0.00027561,5]
[364804469,1749246649221,-181.65256559,0.00027561,5]
[364804471,1749246649230,-480.0,0.00027561,5]
[364804473,1749246649240,-944.11,0.00027561,5]
[364804474,1749246649250,-480.0,0.00027561,5]
[364804475,1749246649259,-521.05,0.00027561,5]
[364804476,1749246649268,-480.0,0.00027561,5]
[364804477,1749246649278,-473.12598187,0.00027561,5]
[364804478,1749246649288,-480.0,0.00027561,5]
[364804479,1749246649298,-1064.79,0.00027561,5]
[364804480,1749246649308,-480.0,0.00027561,5]
[364804481,1749246649317,-480.0,0.00027561,5]
[364804483,1749246649327,-480.0,0.00027561,5]
[364804484,1749246649337,-480.0,0.00027561,5]
[364804486,1749246649346,-480.0,0.00027561,5]
[364804488,1749246649356,-1499.94,0.00027561,5]
[364804490,1749246649365,-480.0,0.00027561,5]
[364804492,1749246649374,-480.0,0.00027561,5]
[364804494,1749246649384,-742.55,0.00027561,5]
[364804496,1749246649393,-296.24357066,0.00027561,5]
[364804498,1749246649402,-480.0,0.00027561,5]
[364804500,1749246649412,-480.0,0.00027561,5]
[364804502,1749246649421,-480.0,0.00027561,5]
[364804504,1749246649431,-480.0,0.00027561,5]
[364804506,1749246649440,-609.61,0.00027561,5]
[364804508,1749246649449,-1158.5,0.00027561,5]
[364804510,1749246649458,-480.0,0.00027561,5]
[364804512,1749246649472,-480.0,0.00027561,5]
[364804514,1749246649482,-480.0,0.00027561,5]
[364804516,1749246649491,-480.0,0.00027561,5]
[364804518,1749246649500,-480.0,0.00027561,5]
[364804520,1749246649510,-480.0,0.00027561,5]
[364804522,1749246649520,-480.0,0.00027561,5]
[364804524,1749246649529,-584.43,0.00027561,5]
[364804526,1749246649538,-675.4,0.00027561,5]
[364804528,1749246649547,-840.68,0.00027561,5]
[364804530,1749246649556,-480.0,0.00027561,5]
[364804532,1749246649566,-454.9211908,0.00027561,5]
[364804534,1749246649578,-654.36,0.00027561,5]
[364804536,1749246649587,-480.0,0.00027561,5]
[364804538,1749246649597,-881.61,0.00027561,5]
[364804540,1749246649606,-480.0,0.00027561,5]
[364804542,1749246649616,-498.7359734,0.00027561,5]
[364804544,1749246649625,-480.0,0.00027561,5]
[364804546,1749246649634,-514.83,0.00027561,5]
[364804548,1749246649643,-866.2,0.00027561,5]
[364804550,1749246649654,-480.0,0.00027561,5]
[364804552,1749246649664,-480.0,0.00027561,5]
[364804554,1749246649673,-480.0,0.00027561,5]
[364804556,1749246649683,-480.0,0.00027561,5]
[364804558,1749246649692,-480.0,0.00027561,5]
[364804560,1749246649701,-480.0,0.00027561,5]
[364804562,1749246649711,-484.77,0.00027561,5]
[364804563,1749246649720,-480.0,0.00027561,5]
[364804565,1749246649729,-480.0,0.00027561,5]
[364804567,1749246649740,-480.0,0.00027561,5]
[364804569,1749246649749,-480.0,0.00027561,5]
[364804571,1749246649758,-555.59,0.00027561,5]
[364804573,1749246649767,-480.0,0.00027561,5]
[364804575,1749246649776,-452.88,0.00027561,5]
[364804577,1749246649785,-480.0,0.00027561,5]
[364804579,1749246649794,-480.0,0.00027561,5]
[364804581,1749246649803,-480.0,0.00027561,5]
[364804583,1749246649813,-480.0,0.00027561,5]
[364804585,1749246649823,-472.80846861,0.00027561,5]
[364804587,1749246649832,-988.23,0.00027561,5]
[364804589,1749246649841,-480.0,0.00027561,5]
[364804591,1749246649850,-480.0,0.00027561,5]
[364804593,1749246649859,-640.37,0.00027561,5]
[364804595,1749246649868,-480.0,0.00027561,5]
[364804597,1749246649877,-480.0,0.00027561,5]
[364804599,1749246649886,-693.56,0.00027561,5]
[364804601,1749246649895,-419.2472697,0.00027561,5]
[364804603,1749246649904,-742.17,0.00027561,5]
[364804605,1749246649914,-480.0,0.00027561,5]
[364804607,1749246649923,-1107.36,0.00027561,5]
[364804609,1749246649933,-480.0,0.00027561,5]
[364804611,1749246649942,-480.0,0.00027561,5]
[364804613,1749246649951,-480.0,0.00027561,5]
[364804615,1749246649961,-480.0,0.00027561,5]
[364804617,1749246649969,-480.0,0.00027561,5]
[364804619,1749246649978,-480.0,0.00027561,5]
[364804621,1749246649987,-480.0,0.00027561,5]
[364804623,1749246649996,-480.0,0.00027561,5]
[364804625,1749246650004,-480.0,0.00027561,5]
[364804627,1749246650013,-480.0,0.00027561,5]
[364804629,1749246650022,-1024.72,0.00027561,5]
[364804631,1749246650031,-807.19,0.00027561,5]
[364804633,1749246650040,-532.18,0.00027561,5]
[364804635,1749246650049,-480.0,0.00027561,5]
[364804637,1749246650058,-480.0,0.00027561,5]
[364804639,1749246650068,-480.0,0.00027561,5]
[364804641,1749246650076,-791.89,0.00027561,5]
[364804643,1749246650086,-720.13,0.00027561,5]
[364804645,1749246650095,-480.0,0.00027561,5]
[364804647,1749246650104,-480.0,0.00027561,5]
[364804649,1749246650114,-1109.46,0.00027561,5]
[364804651,1749246650123,-480.0,0.00027561,5]
[364804653,1749246650134,-480.0,0.00027561,5]
[364804655,1749246650143,-486.82,0.00027561,5]
[364804657,1749246650152,-480.0,0.00027561,5]
[364804659,1749246650162,-480.0,0.00027561,5]
[364804661,1749246650171,-491.55,0.00027561,5]
[364804663,1749246650181,-480.0,0.00027561,5]
[364804665,1749246650190,-480.0,0.00027561,5]
[364804667,1749246650199,-480.0,0.00027561,5]
[364804669,1749246650208,-875.07,0.00027561,5]
[364804671,1749246650217,-1682.48,0.00027561,5]
[364804673,1749246650227,-485.33,0.00027561,5]
[364804675,1749246650235,-480.0,0.00027561,5]
[364804677,1749246650244,-480.0,0.00027561,5]
[364804679,1749246650253,-480.0,0.00027561,5]
[364804681,1749246650262,-500.0,0.00027561,5]
[364804683,1749246650271,-858.22,0.00027561,5]
[364804685,1749246650280,-480.0,0.00027561,5]
[364804686,1749246650289,-787.71,0.00027561,5]
[364804687,1749246650298,-1346.81,0.00027561,5]
[364804688,1749246650307,-830.11,0.00027561,5]
[364804689,1749246650316,-480.0,0.00027561,5]
[364804690,1749246650325,-480.0,0.00027561,5]
[364804691,1749246650334,-951.1,0.00027561,5]
[364804692,1749246650343,-665.78,0.00027561,5]
[364804693,1749246650351,-1000.0,0.00027561,5]
[364804694,1749246650360,-864.11,0.00027561,5]
[364804695,1749246650369,-480.0,0.00027561,5]
[364804696,1749246650378,-898.25,0.00027561,5]
[364804697,1749246650387,-1665.9,0.00027561,5]
[364804698,1749246650396,-480.0,0.00027561,5]
[364804699,1749246650405,-480.0,0.00027561,5]
[364804700,1749246650414,-480.0,0.00027561,5]
[364804701,1749246650424,-922.04,0.00027561,5]
[364804702,1749246650433,-480.0,0.00027561,5]
[364804703,1749246650442,-480.0,0.00027561,5]
[364804704,1749246650452,-507.1,0.00027561,5]
[364804705,1749246650462,-480.0,0.00027561,5]
[364804706,1749246650471,-503.58,0.00027561,5]
[364804707,1749246650480,-480.0,0.00027561,5]
[364804708,1749246650489,-480.0,0.00027561,5]
[364804709,1749246650499,-480.0,0.00027561,5]
[364804710,1749246650508,-541.96468985,0.00027561,5]
[364804711,1749246650518,-480.0,0.00027561,5]
[364804712,1749246650528,-480.0,0.00027561,5]
[364804713,1749246650539,-480.0,0.00027561,5]
[364804714,1749246650549,-480.0,0.00027561,5]
[364804715,1749246650558,-480.0,0.00027561,5]
[364804716,1749246650574,-857.71,0.00027561,5]
[364804717,1749246650585,-881.94,0.00027561,5]
[364804718,1749246650596,-480.0,0.00027561,5]
[364804719,1749246650606,-3871.62,0.00027561,5]
[364804720,1749246650616,-480.0,0.00027561,5]
[364804721,1749246650626,-1276.99,0.00027561,5]
[364804722,1749246650635,-700.22,0.00027561,5]
[364804723,1749246650644,-961.98,0.00027561,5]
[364804724,1749246650655,-480.0,0.00027561,5]
[364804725,1749246650664,-800.25,0.00027561,5]
[364804726,1749246650673,-2314.74,0.00027561,5]
[364804727,1749246650683,-480.0,0.00027561,5]
[364804728,1749246650692,-2288.89,0.00027561,5]
[364804729,1749246650702,-6306.05,0.00027561,5]
[364804730,1749246650712,-480.0,0.00027561,5]
[364804731,1749246650721,-991.79,0.00027561,5]
[364804733,1749246650730,-251.759631,0.00027561,5]
[364804735,1749246650739,-251.759631,0.00027561,5]
[364804737,1749246650748,-251.759631,0.00027561,5]
[364804739,1749246650757,-251.759631,0.00027561,5]
[364804741,1749246650765,-251.759631,0.00027561,5]
[364804743,1749246650774,-192.08,0.00027561,5]
[364804745,1749246650783,-480.0,0.00027561,5]
[364804746,1749246650792,-3309.41,0.00027561,5]
[364804748,1749246650801,-166.1773604,0.00027561,5]
[364804751,1749246650810,-6270.48,0.00027561,5]
[364804753,1749246650820,-658.77,0.00027561,5]
[364804755,1749246650830,-1547.23,0.00027561,5]
[364804756,1749246650841,-480.0,0.00027561,5]
[364804758,1749246650851,-656.6,0.00027561,5]
[364804760,1749246650860,-153.74537542,0.00027561,5]
[364804762,1749246650870,-678.5,0.00027561,5]
[364804764,1749246650879,-697.1,0.00027561,5]
[364804765,1749246650888,-3290.58,0.00027561,5]
[364804766,1749246650897,-480.0,0.00027561,5]
[364804767,1749246650906,-480.0,0.00027561,5]
[364804768,1749246650915,-480.0,0.00027561,5]
[364804769,1749246650923,-41825.2,0.00027561,5]
[364804770,1749246650932,-4175.73,0.00027561,5]
[364804771,1749246650941,-757.81,0.00027561,5]
[364804772,1749246650950,-827.83,0.00027561,5]
[364804773,1749246650959,-1000.0,0.00027561,5]
[364804774,1749246650972,-480.0,0.00027561,5]
[364804775,1749246650982,-2642.31,0.00027561,5]
[364804776,1749246650991,-480.0,0.00027561,5]
[364804778,1749246651000,-494.1,0.00027561,5]
[364804779,1749246651009,-477.84624038,0.00027561,5]
[364804780,1749246651019,-480.0,0.00027561,5]
[364804781,1749246651028,-1402.22,0.00027561,5]
[364804782,1749246651036,-593.19,0.00027561,5]
[364804783,1749246651046,-915.82,0.00027561,5]
[364804784,1749246651055,-480.0,0.00027561,5]
[364804785,1749246651065,-548.04,0.00027561,5]
[364804787,1749246651076,-7246.33,0.00027561,5]
[364804789,1749246651091,-1038.48,0.00027561,5]
[364804791,1749246651101,-1012.51,0.00027561,5]
[364804792,1749246651110,-538.71418087,0.00027561,5]
[364804793,1749246651119,-480.0,0.00027561,5]
[364804794,1749246651128,-1063.91,0.00027561,5]
[364804795,1749246651136,-480.0,0.00027561,5]
[364804796,1749246651145,-1000.0,0.00027561,2]
[364804797,1749246651153,-2287.44,0.00027561,5]
[364804798,1749246651162,-480.0,0.00027561,5]
[364804799,1749246651172,-1253.57,0.00027561,5]
[364804800,1749246651180,-480.0,0.00027561,5]
[364804801,1749246651189,-543.96,0.00027561,5]
[364804802,1749246651198,-888.06,0.00027561,5]
[364804804,1749246651207,-480.0,0.00027561,5]
[364804806,1749246651216,-706.17,0.00027561,5]
[364804807,1749246651228,-251.97,0.00027561,5]
[364804808,1749246651240,-2321.6,0.00027561,5]
[364804809,1749246651249,-1717.97,0.00027561,5]
[364804811,1749246651259,-480.0,0.00027561,5]
[364804813,1749246651269,-9864.62,0.00027561,5]
[364804815,1749246651278,-480.0,0.00027561,5]
[364804817,1749246651287,-480.0,0.00027561,5]
[364804818,1749246651296,-480.0,0.00027561,5]
[364804819,1749246651305,-480.0,0.00027561,5]
[364804820,1749246651314,-480.0,0.00027561,5]
[364804821,1749246651324,-480.0,0.00027561,5]
[364804822,1749246651333,-915.9,0.00027561,5]
[364804823,1749246651343,-1064.72,0.00027561,5]
[364804824,1749246651353,-1463.3,0.00027561,5]
[364804825,1749246651362,-2703.77,0.00027561,5]
[364804826,1749246651372,-480.0,0.00027561,5]
[364804827,1749246651382,-480.0,0.00027561,5]
[364804828,1749246651391,-1053.29,0.00027561,5]
[364804829,1749246651401,-480.0,0.00027561,5]
[364804830,1749246651411,-1379.5,0.00027561,5]
[364804831,1749246651421,-724.32,0.00027561,5]
[364804832,1749246651431,-2062.4,0.00027561,5]
[364804833,1749246651441,-480.0,0.00027561,5]
[364804834,1749246651450,-1152.25,0.00027561,5]
[364804835,1749246651460,-156.86458956,0.00027561,5]
[364804836,1749246651470,-511.1,0.00027561,5]
[364804837,1749246651480,-480.0,0.00027561,5]
[364804838,1749246651489,-2113.21,0.00027561,5]
[364804839,1749246651499,-950.72,0.00027561,5]
[364804840,1749246651509,-1038.72,0.00027561,5]
[364804841,1749246651518,-480.0,0.00027561,5]
[364804842,1749246651529,-545.76,0.00027561,5]
[364804843,1749246651539,-547.32980497,0.00027561,5]
[364804844,1749246651550,-682.89,0.00027561,5]
[364804845,1749246651560,-2532.67,0.00027561,5]
[364804846,1749246651571,-3584.03,0.00027561,5]
[364804847,1749246651582,-480.0,0.00027561,5]
[364804848,1749246651592,-528.47,0.00027561,5]
[364804849,1749246651602,-548.2,0.00027561,5]
[364804850,1749246651612,-480.0,0.00027561,5]
[364804851,1749246651622,-495.39431166,0.00027561,5]
[364804852,1749246651632,-720.56,0.00027561,5]
[364804853,1749246651641,-961.24,0.00027561,5]
[364804854,1749246651653,-490.38619813,0.00027561,5]
[364804855,1749246651663,-480.0,0.00027561,5]
[364804856,1749246651673,-948.47,0.00027561,5]
[364804857,1749246651683,-1184.48,0.00027561,5]
[364804858,1749246651694,-618.38,0.00027561,5]
[364804859,1749246651704,-480.0,0.00027561,5]
[364804860,1749246651715,-480.0,0.00027561,5]
[364804861,1749246651725,-480.0,0.00027561,5]
[364804862,1749246651735,-480.0,0.00027561,5]
[364804863,1749246651746,-729.47,0.00027561,5]
[364804864,1749246651756,-480.0,0.00027561,5]
[364804865,1749246651766,-2291.9,0.00027561,5]
[364804866,1749246651776,-480.0,0.00027561,5]
[364804867,1749246651786,-480.0,0.00027561,5]
[364804868,1749246651797,-558.53,0.00027561,5]
[364804869,1749246651806,-480.0,0.00027561,5]
[364804870,1749246651815,-190.600033,0.00027561,5]
[364804871,1749246651826,-480.0,0.00027561,5]
[364804872,1749246651837,-480.0,0.00027561,5]
[364804873,1749246651846,-288.26849159,0.00027561,5]
[364804874,1749246651857,-1173.51,0.00027561,5]
[364804875,1749246651867,-1217.86,0.00027561,5]
[364804876,1749246651876,-480.0,0.00027561,5]
[364804877,1749246651886,-661.15,0.00027561,5]
[364804878,1749246651895,-2825.65,0.00027561,5]
[364804879,1749246651905,-782.79,0.00027561,5]
[364804880,1749246651914,-480.0,0.00027561,5]
[364804881,1749246651923,-866.52,0.00027561,5]
[364804882,1749246651933,-480.0,0.00027561,5]
[364804883,1749246651942,-978.55,0.00027561,5]
[364804884,1749246651952,-480.0,0.00027561,5]
[364804885,1749246651963,-480.0,0.00027561,5]
[364804886,1749246651974,-480.0,0.00027561,5]
[364804887,1749246651984,-308.78,0.00027561,5]
[364804888,1749246651994,-480.0,0.00027561,5]
[364804889,1749246652004,-480.0,0.00027561,5]
[364804890,1749246652014,-480.0,0.00027561,5]
[364804891,1749246652024,-3108.49,0.00027561,5]
[364804892,1749246652033,-480.0,0.00027561,5]
[364804893,1749246652043,-1300.77,0.00027561,5]
[364804894,1749246652053,-480.0,0.00027561,5]
[364804895,1749246652063,-2680.22,0.00027561,5]
[364804896,1749246652073,-480.0,0.00027561,5]
[364804897,1749246652083,-1437.98,0.00027561,5]
[364804898,1749246652092,-480.0,0.00027561,5]
[364804899,1749246652102,-519.51,0.00027561,5]
[364804900,1749246652112,-480.0,0.00027561,5]
[364804901,1749246652122,-480.0,0.00027561,5]
[364804902,1749246652132,-509.64,0.00027561,5]
[364804903,1749246652142,-480.0,0.00027561,5]
[364804904,1749246652152,-480.0,0.00027561,5]
[364804905,1749246652162,-9520.94,0.00027561,5]
[364804906,1749246652172,-480.0,0.00027561,5]
[364804907,1749246652182,-480.0,0.00027561,5]
[364804908,1749246652192,-480.0,0.00027561,5]
[364804909,1749246652203,-480.0,0.00027561,5]
[364804910,1749246652212,-480.0,0.00027561,5]
[364804911,1749246652222,-1288.3,0.00027561,5]
[364804912,1749246652232,-1532.11,0.00027561,5]
[364804913,1749246652242,-539.78,0.00027561,5]
[364804914,1749246652251,-480.0,0.00027561,5]
[364804915,1749246652261,-1411.14,0.00027561,5]
[364804916,1749246652270,-1226.65,0.00027561,5]
[364804917,1749246652280,-480.0,0.00027561,5]
[364804918,1749246652289,-11376.28,0.00027561,5]
[364804919,1749246652300,-480.0,0.00027561,5]
[364804920,1749246652309,-745.67,0.00027561,5]
[364804921,1749246652319,-480.0,0.00027561,5]
[364804922,1749246652329,-480.0,0.00027561,5]
[364804923,1749246652338,-480.0,0.00027561,5]
[364804924,1749246652348,-1096.92,0.00027561,5]
[364804925,1749246652358,-480.0,0.00027561,5]
[364804926,1749246652368,-480.0,0.00027561,5]
[364804927,1749246652378,-480.0,0.00027561,5]
[364804928,1749246652388,-1261.97,0.00027561,5]
[364804929,1749246652398,-480.0,0.00027561,5]
[364804930,1749246652407,-1625.92,0.00027561,5]
[364804931,1749246652417,-480.0,0.00027561,5]
[364804932,1749246652427,-480.0,0.00027561,5]
[364804933,1749246652437,-550.84,0.00027561,5]
[364804934,1749246652448,-483.94,0.00027561,5]
[364804935,1749246652458,-5339.23,0.00027561,5]
[364804936,1749246652467,-1348.87,0.00027561,5]
[364804937,1749246652478,-489.87,0.00027561,5]
[364804938,1749246652488,-340.484986,0.00027561,5]
[364804939,1749246652497,-828.64,0.00027561,5]
[364804940,1749246652508,-480.0,0.00027561,5]
[364804941,1749246652518,-480.0,0.00027561,5]
[364804942,1749246652527,-480.0,0.00027561,5]
[364804943,1749246652537,-1697.96,0.00027561,5]
[364804944,1749246652547,-1051.18,0.00027561,5]
[364804945,1749246652557,-480.0,0.00027561,5]
[364804946,1749246652568,-1189.86,0.00027561,5]
[364804947,1749246652581,-480.0,0.00027561,2]
[364804948,1749246652590,-633.51,0.00027561,5]
[364804949,1749246652603,-480.0,0.00027561,5]
[364804950,1749246652615,-480.0,0.00027561,5]
[364804951,1749246652627,-480.0,0.00027561,5]
[364804952,1749246652637,-480.0,0.00027561,5]
[364804953,1749246652647,-2333.6,0.00027561,5]
[364804954,1749246652659,-480.0,0.00027561,2]
[364804955,1749246652669,-551.67,0.00027561,5]
[364804956,1749246652679,-765.3,0.00027561,5]